Workbook

Sheet PFP
A7: PROPOSTA FINANCEIRA DO PROJETO
A10: NOME DA CONSULTORA: | B10: EDITAL:
A12: OBJETO:
A13: ELABORAÇÃO DO PROJETO BÁSICO DE ENGENHARIA DO SISTEMA DE ESGOTAMENTO SANITÁRIO E DRENAGEM URBANA DO MUNICÍPIO DE ARAME, NO ESTADO DO MARANHÃO
A17: SERVIÇOS PAGOS A PREÇO GLOBAL
A19: CUSTOS DIRETOS
A20: MÃO DE OBRA
A21: A1 - TOTAL SALÁRIOS DA EQUIPE COM VÍNCULO (FPRO-I) | B21: ='FPRO_I Salários Equipe Técnica'!E30 -> 134000
A22: A - TOTAL DE MÃO DE OBRA: | B22: =SUM(B21:B21) -> 134000
A23: ENCARGOS SOCIAIS
A24: =CONCATENATE("B1 - ENCARGOS SOCIAIS DE A1 (",100*'FPRO_X Det_ Enc_ Soc_'!D57,"% DO A1) (FPRO-X)") -> B1 - ENCARGOS SOCIAIS DE A1 (72,97% DO A1) (FPRO-X) | B24: =ROUND('FPRO_X Det_ Enc_ Soc_'!D57*B21,2) -> 97779.8
A25: B - TOTAL DE ENCARGOS SOCIAIS: | B25: =SUM(B24:B24) -> 97779.8
A26: OUTRAS DESPESAS
A27: C1 - DESPESAS COM VIAGENS (FPRO-II) | B27: ='FPRO_II Viagens'!E29 -> 23461.47962
A28: C2 - SERVIÇOS GRÁFICOS (FPRO-III) | B28: ='FPRO_III Ser Graf'!E25 -> 15600
A29: C - TOTAL DE OUTRAS DESPESAS: | B29: =SUM(B27:B28) -> 39061.47962
A31: TOTAL DOS CUSTOS DIRETOS: | B31: =SUM(B22+B25+B29) -> 270841.2796
A33: CUSTOS INDIRETOS
A34: =CONCATENATE("D - CUSTO DE ADMINISTRAÇÃO = (",100*'FPRO_VIII_Det_Custos Adm_'!C21,"% DO ITEM A) (FPRO-VIII)") -> D - CUSTO DE ADMINISTRAÇÃO = (15% DO ITEM A) (FPRO-VIII) | B34: =ROUND('FPRO_VIII_Det_Custos Adm_'!C21*PFP!B22,2) -> 20100
A35: E - REMUNERAÇÃO DA EMPRESA (LUCRO) = (10% DOS ITENS A+B+C+D) | B35: =ROUND(0.1*(B31+B34),2) -> 29094.13
A36: =CONCATENATE("F - DESPESAS FISCAIS (",ROUND('FPRO_IX Det_ Desp Fiscais'!C21,2),"% = DF' DOS ITENS A+B+C+D+E) (FPRO-IX)") -> F - DESPESAS FISCAIS (16,62% = DF' DOS ITENS A+B+C+D+E) (FPRO-IX) | B36: =ROUND('FPRO_IX Det_ Desp Fiscais'!C21/100*(B31+B34+B35),2) -> 53189.89
A37: TOTAL DOS CUSTOS INDIRETOS: | B37: =SUM(B34:B36) -> 102384.02
A39: TOTAL DOS SERVIÇOS PAGOS A PREÇO GLOBAL: | B39: =B31+B37 -> 373225.2996
A42: SERVIÇOS PAGOS A PREÇO UNITÁRIO
A43: H - Serviços Topográficos (FPRO-IV) | B43: ='FPRO-IV Topografia'!F40 -> 113575.7
A44: G - Serviços Geotécnicos (FPRO-V) | B44: ='FPRO_V Geotecnia'!F69 -> 82971.56
A45: J - Serviços Auxiliares (FPRO-VI) | B45: ='FPRO-VI Serviços Auxiliares'!F24 -> 227.44
A46: TOTAL DOS SERVIÇOS PAGOS A PREÇO UNITÁRIO | B46: =SUM(B43:B45) -> 196774.7
A48: TOTAL DA PROPOSTA | B48: =B31+B37+B46 -> 569999.9996

Sheet FPRO_I Salários Equipe Técnica
A7: SALÁRIOS DA EQUIPE TÉCNICA | D7: CÓDIGO:
D8: FPRO - I
A10: NOME DA CONSULTORA: | C10: EDITAL:
A12: OBJETO:
A13: Elaboração do Projeto Básico de Engenharia do Sistema de Esgotamento Sanitário e Drenagem Urbana do Município de ARAME, no Estado do Maranhão
A17: EQUIPE TÉCNICA
A19: Descrição | B19: Categoria | C19: Quantidade (mês) | D19: Salário (R$)
D20: Categoria | E20: Total
A21: NÍVEL SUPERIOR
A22: Profissional Pleno | B22: P1 | C22: 2 | D22: 9000 | E22: =C22*D22 -> 18000
A23: Profissional Médio | B23: P2 | C23: 4 | D23: 8500 | E23: =C23*D23 -> 34000
A24: Profissional Júnior | B24: P3 | C24: 4 | D24: 8500 | E24: 34000
A25: Profissional Trainee
A26: NÍVEL TÉCNICO
A27: Técnico - Profissional Pleno | B27: T1 | C27: 8 | D27: 3500 | E27: =C27*D27 -> 28000
A28: 2000
A29: Ajudante Administrativo | B29: A2 | C29: 8 | D29: 2500 | E29: =C29*D29 -> 20000
A30: Total Geral - Salário Equipe (R$): | E30: =SUM(E22:E29) -> 134000
A33: NOME DO INFORMANTE: Pedro Antonio Molinas | C33: QUALIFICAÇÃO: Sócio - Diretor
A35: ASSINATURA: | D35: DATA:
D36: 2019-12-09
A37: OBSERVAÇÃO:
A38: 1 - QUANTIDADE DEFINIDA EM FUNÇÃO DE HOMEM X MÊS

Sheet FPRO_II Viagens
A7: VIAGENS DA EQUIPE TÉCNICA | D7: CÓDIGO:
D8: FPRO - II
A10: NOME DA CONSULTORA: | C10: EDITAL:
A12: OBJETO:
A13: Elaboração do Projeto Básico de Engenharia do Sistema de Esgotamento Sanitário e Drenagem Urbana do Município de ARAME, no Estado do Maranhão
A17: Descrição | B17: Unidade | C17: Quantidade | D17: Valor (R$)
D18: Unitário | E18: Total
A19: VIAGENS - Trechos Aéreos e Terrestres
A20: Trechos Aéreos (Sede-SLZ-Sede) | B20: und | C20: 9 | D20: 1367.608846 | E20: =C20*D20 -> 12308.47962 | G20: =2100/8*4.7 -> 1233.75
A21: Trechos Terrestres (SLZ-Arame-SLZ) | B21: diária | C21: 30 | D21: 50 | E21: =C21*D21 -> 1500
A23: Total - Viagens: | E23: =SUM(E20:E22) -> 13808.47962
A24: DIÁRIAS
A25: DIÁRIAS (São Luis) | B25: und | C25: 8 | D25: 400 | E25: =C25*D25 -> 3200
A26: Diárias (Arame) | B26: und | C26: =C20*3 -> 27 | D26: 239 | E26: =C26*D26 -> 6453
A27: Total - Diárias: | E27: =SUM(E25:E26) -> 9653
A29: Total Geral - Viagens da Equipe Técnica: | E29: =E23+E27 -> 23461.47962
A32: NOME DO INFORMANTE: Pedro Antonio Molinas | C32: QUALIFICAÇÃO: Sócio - Diretor
A34: ASSINATURA: | D34: DATA:
D35: 2019-12-09
A36: OBSERVAÇÃO:
A37: 1 - AS DIÁRIAS COBREM DESPESAS COM TÁXI, ALIMENTAÇÃO E HOSPEDAGEM
A38: 2 – SEDE: REFERE-SE À SEDE DA EMPRESA CONTRATADA.
A39: 3 – SLZ: REFERE-SE À 8ª SUPERINTENDÊNCIA DA CODEVASF, EM SÃO LUIS /MA
A40: 4 - AS VIAGENS TERRESTRES SERÃO FEITAS ATRAVÉS DE VEÍCULO TIPO SEDÃ, OU SIMILAR

Sheet FPRO_III Ser Graf
A7: SERVIÇOS GRÁFICOS | D7: CÓDIGO:
D8: FPRO - III
A10: NOME DA CONSULTORA: | C10: EDITAL:
A12: OBJETO:
A13: Elaboração do Projeto Básico de Engenharia do Sistema de Esgotamento Sanitário e Drenagem Urbana do Município de ARAME, no Estado do Maranhão
A17: Descrição | B17: Quantidade | C17: Nº de Vias | D17: Valor (R$)
D18: Unitário | E18: Total
A19: Levantamentos, Diagnóstico e Estudo de Alternativas | B19: 1 | C19: 2 | D19: 1400 | E19: =B19*C19*D19 -> 2800
A20: Minuta do Relatorio Final | B20: 1 | C20: 4 | D20: 400 | E20: =B20*C20*D20 -> 1600
A21: Relatório Final | B21: 2 | C21: 4 | D21: 1400 | E21: =B21*C21*D21 -> 11200
A25: Total Geral - Serviços Gráficos: | E25: =SUM(E19:E24) -> 15600
A27: NOME DO INFORMANTE: Pedro Antonio Molinas | C27: QUALIFICAÇÃO: Sócio - Diretor
A29: ASSINATURA: | D29: DATA:
D30: 2019-12-09
A31: OBSERVAÇÃO:
A32: 1 - RELACIONAR OS RELATÓRIOS COM SUAS RESPECTIVAS QUANTIDADES E Nº DE VIAS, BEM COMO COM SEUS CUSTOS COM IMPRESSÃO
A34: 2 - A QUANTIDADE ESTIMADA DE PÁGINAS E DESENHOS EM FORMATO A1 OU A4, POR VOLUME, DEVERÁ SER EFETUADA LEVANDO-SE EM CONSIDERAÇÃO O CONHECIMENTO DAS NECESSIDADES DE CADA SISTEMA E AS CARACTERÍSTICAS INERENTES A CADA VOLUME INTEGRANTE DO PROJETO.

Sheet FPRO-IV Topografia
A7: SERVIÇOS TOPOGRÁFICOS | E7: CÓDIGO:
E8: FPRO - IV
A10: NOME DA CONSULTORA: | D10: EDITAL:
A12: OBJETO:
A13: Elaboração do Projeto Básico de Engenharia do Sistema de Esgotamento Sanitário e Drenagem Urbana do Município de ARAME, no Estado do Maranhão
A17: Item | B17: Descrição | C17: Unidade | D17: Quantidade | E17: Valor (R$)
E18: Unitário | F18: Total
A19: 1 | B19: Amarração Planialtimétrica
A20: 1.1 | B20: Pontos GPS de dupla frequencia (L1/L2) | C20: un | D20: 3 | E20: 800 | F20: =ROUND(D20*E20,2) -> 2400
A21: 1.2 | B21: Pontos GPS de uma frequencia (L1) | C21: un | D21: 3 | E21: 400 | F21: =ROUND(D21*E21,2) -> 1200 | H21: =40/1.7 -> 23.52941176
A22: 1.3 | B22: Poligonal eletrônica classe IIP | C22: km | D22: 1 | E22: 800 | F22: =ROUND(D22*E22,2) -> 800 | H22: =24*1337.19 -> 32092.56
A23: 1.4 | B23: Nivelamento Geométrico classe IIN | C23: km | D23: 1 | E23: 500 | F23: =ROUND(D23*E23,2) -> 500
A24: 2 | B24: Estações de Bombeamento, Drenagem, Canais, Tubulações
A25: 2.1 | B25: Poligonal eletrônica classe IIP | C25: km | D25: 50 | E25: =E22 -> 800 | F25: =ROUND(D25*E25,2) -> 40000 | H25: =10/1.7 -> 5.882352941
A26: 2.2 | B26: Nivelamento Geométrico classe IIN | C26: km | D26: 50 | E26: =E23 -> 500 | F26: =ROUND(D26*E26,2) -> 25000 | H26: 6
A27: 2.3 | B27: Seções Transversais (Nivelamento IIN) | C27: km | D27: 20.2 | E27: =E23 -> 500 | F27: =ROUND(D27*E27,2) -> 10100
A28: 3 | B28: Jazidas
A29: 3.1 | B29: Poligonal eletrônica classe IIP | C29: km | D29: 1 | E29: =E25 -> 800 | F29: =ROUND(D29*E29,2) -> 800
A30: 3.2 | B30: Nivelamento Geométrico classe IIN | C30: km | D30: 1 | E30: =E26 -> 500 | F30: =ROUND(D30*E30,2) -> 500
A31: 3.3 | B31: Seções Transversais (Nivelamento IIN) | C31: km | D31: 2 | E31: =E27 -> 500 | F31: =ROUND(D31*E31,2) -> 1000
A32: 4 | B32: Monumentação
A33: 4.1 | B33: Marco de Concreto (8x12x60cm) | C33: un | D33: 10 | E33: 46.07 | F33: =ROUND(D33*E33,2) -> 460.7
A34: 4.2 | B34: Barrotes de Madeira (10x10x50cm) | C34: un | D34: 600 | E34: 23.77 | F34: =ROUND(D34*E34,2) -> 14262
A35: 4.3 | B35: Piquetes de Madeira (2x2x20cm) | C35: un | D35: 7700 | E35: 2 | F35: =ROUND(D35*E35,2) -> 15400
A36: 5 | B36: Abertura de Picadas
A37: 5.1 | B37: Recomposição de cercas de arame | C37: m | D37: 50 | E37: 3.26 | F37: =E37*D37 -> 163 | H37: TABELA SINAPI (07/2019): CÓDIGO 85.171
A38: 5.2 | B38: Abertura de picada manual | C38: m² | D38: 1000 | E38: 0.99 | F38: =ROUND(D38*E38,2) -> 990 | H38: TABELA SINAPI (07/2019): CÓDIGO 85.331 - CONSIDERADO O PREÇO DE CORTE DE CAPOEIRA A FOICE, 1M DE LARGURA, POR SEREM SERVIÇOS SIMILARES
A40: Total Geral - Serviços Topográficos: | F40: =SUM(F20:F38) -> 113575.7
A43: NOME DO INFORMANTE: Pedro Antonio Molinas | D43: QUALIFICAÇÃO: Sócio - Diretor
A45: ASSINATURA: | E45: DATA:
E46: 2019-12-09
A47: OBSERVAÇÃO:
A48: 1 - OS SERVIÇOS PAGOS A PREÇOS UNITÁRIOS INCLUEM OS CUSTOS DE MÃO DE OBRA, EQUIPAMENTOS, MATERIIAIS E VEÍCULOS UTILIZADOS NA SUA EXECUÇÃO; BEM COMO CUSTOS DE ADMINISTRAÇÃO E DESPESAS FISCAIS
A51: 2 - OS ITENS 5.1 E 5.2 FORAM OBTIDOS A PARTIR DO SINAPI, E OS DEMAIS FORAM EXTRAÍDOS DA TABELA DE ENGENHARIA CONSULTIVA DA CODEVASF

Sheet FPRO_V Geotecnia
A7: SERVIÇOS GEOTÉCNICOS | E7: CÓDIGO:
E8: FPRO - V
A10: NOME DA CONSULTORA: | D10: EDITAL:
A12: OBJETO:
A13: Elaboração do Projeto Básico de Engenharia do Sistema de Esgotamento Sanitário e Drenagem Urbana do Município de ARAME, no Estado do Maranhão
A17: Item | B17: Descrição | C17: Unidade | D17: Quantidade | E17: Valor (R$)
E18: Unitário | F18: Total
A19: 1 | B19: SONDAGEM MISTA
A20: 1.1 | B20: Sondagem Rotativa
A21: 1.1.1 | B21: Mobilização/desmobilização de equipamento | C21: und
A22: 1.1.2 | B22: Em jazidas graníticas e rochas afins
A23: 1.1.2.1 | B23: - Ø N | C23: m
A24: 1.1.2.2 | B24: - Ø B | C24: m
A25: 1.1.2.3 | B25: - Ø B (sondagem em solo) | C25: m
A26: 1.1.3 | B26: Deslocamento/instalação do equipamento
A27: 1.1.3.1 | B27: - 0 a 200 metros | C27: und
A28: 1.1.3.2 | B28: - 201 a 500 metros | C28: und
A29: 1.1.3.3 | B29: - Acima de 500 metros | C29: und
A30: 1.2 | B30: Sondagem a Percussão
A31: 1.2.1 | B31: - Mobilização/desmobilização de equipamento | C31: und | D31: 1 | E31: 3312.31 | F31: =ROUND(D31*E31,2) -> 3312.31
A32: 1.2.2 | B32: - Sondagem à percussão com SPT | C32: m | D32: 100 | E32: 72.87 | F32: =ROUND(D32*E32,2) -> 7287
B33: Deslocamento/instalação de equipam.
B34: - 0 a 200 metros | C34: und
B35: - 201 a 500 metros | C35: und
B36: - Acima de 500 metros | C36: und
A37: 2. | B37: SONDAGEM SÍSMICA DE REFRAÇÃO | C37: km
A38: 3. | B38: SONDAGEM A TRADO (4") | C38: m | D38: 720 | E38: 67.28 | F38: =ROUND(D38*E38,2) -> 48441.6
A39: 4. | B39: POÇOS DE INSPEÇÃO com retroescavadeira | C39: m
A40: 5. | B40: ENSAIOS
A41: 5.1 | B41: Ensaios em solos | C41: ensaio
A42: 5.1.1 | B42: Umidade Natural | C42: ensaio | D42: 15 | E42: 73.33 | F42: =ROUND(D42*E42,2) -> 1099.95
A43: 5.1.2 | B43: Densidade Natural | C43: ensaio | D43: 15 | E43: 73.33 | F43: 1099.95
A44: 5.1.3 | B44: Limite de Liquidez | C44: ensaio | D44: 15 | E44: 101.03 | F44: 1515.45
A45: 5.1.4 | B45: Limite de Plasticidade | C45: ensaio | D45: 15 | E45: 101.03 | F45: 1515.45
A46: 5.1.5 | B46: Granulometria por Peneiramento | C46: ensaio | D46: 15 | E46: 112 | F46: 1680
A47: 5.1.6 | B47: Granulometria por Sedimentação | C47: ensaio | D47: 15 | E47: 342.19 | F47: 5132.85
A48: 5.1.7 | B48: Ensaio compactação Proctor Normal | C48: ensaio | D48: 15 | E48: 144.2 | F48: 2163
A49: 5.1.8 | B49: Massa Especifica Real dos Grãos | C49: ensaio | D49: 15 | E49: 95.67 | F49: 1435.05
A50: 5.1.9 | B50: Adensamento Oedométrico | C50: ensaio
A51: 5.1.10 | B51: Triaxial (UU) não consolidado não drenado | C51: ensaio
A52: 5.1.11 | B52: Triaxial (CU) consolidado - não drenado | C52: ensaio
A53: 5.1.12 | B53: Expansão (pressão de expansão) | C53: ensaio
A54: 5.1.13 | B54: Dispersão | C54: ensaio
A55: 5.1.13.1 | B55: Granulometria Comparativa | C55: ensaio
A56: 5.1.13.2 | B56: Crumb Test | C56: ensaio
A57: 5.1.14 | B57: Infiltração | C57: ensaio | D57: 15 | E57: 205.24 | F57: =ROUND(D57*E57,2) -> 3078.6
A58: 5.1.15 | B58: Ensaio de Perda d''agua (05 estágios) | C58: ensaio
A59: 5.1.16 | B59: Análise da Areia | C59: ensaio
A60: 5.1.16.1 | B60: Análise Química da Areia | C60: ensaio
A61: 5.1.16.2 | B61: Mineralogia da Areia | C61: ensaio
A62: 5.1.17 | B62: Mineralogia | C62: ensaio
A63: 5.1.18 | B63: Abrasão "Los Angeles " | C63: ensaio
A64: 5.1.19 | B64: Reatividade Potencial | C64: ensaio
A65: 5.1.20 | B65: Permeabilidade vertical de carga variavel | C65: ensaio | D65: 5 | E65: 583.34 | F65: =ROUND(D65*E65,2) -> 2916.7
A66: 5.1.21 | B66: Permeabilidade "in situ" | C66: ensaio | D66: 5 | E66: 458.73 | F66: =ROUND(D66*E66,2) -> 2293.65
A67: 5.1.22 | B67: Indice de Suporte California ISC com amostras não trabalhadas | C67: ensaio | I67: =100-9.5 -> 90.5
A69: Total Geral - Serviços Geotécnicos: | F69: =SUM(F20:F67) -> 82971.56 | H69: 73711 | I69: =H69/0.905 -> 81448.61878
H71: =F69/H69 -> 1.125633352
A72: NOME DO INFORMANTE: Pedro Antonio Molinas | D72: QUALIFICAÇÃO: Sócio Diretor
A74: ASSINATURA: | E74: DATA:
E75: 2019-12-09
A76: OBSERVAÇÃO:
A77: 1 - OS SERVIÇOS PAGOS A PREÇOS UNITÁRIOS INCLUEM OS CUSTOS DE MÃO-DE-OBRA, EQUIPAMENTOS E MATERIAIS UTILIZADOS NA SUA EXECUÇÃO, BEM COMO LUCRO, CUSTOS DE ADMINISTRAÇÃO E DESPESAS FISCAIS

Sheet FPRO-VI Serviços Auxiliares
A7: SERVIÇOS AUXILIARES | E7: CÓDIGO:
E8: FPRO - VI
A10: NOME DA CONSULTORA: | D10: EDITAL:
A12: OBJETO:
A13: Elaboração do Projeto Básico de Engenharia do Sistema de Esgotamento Sanitário e Drenagem Urbana do Município de ARAME, no Estado do Maranhão
A17: Item | B17: Descrição | C17: Unidade | D17: Quantidade | E17: Valor (R$)
E18: Unitário | F18: Total
A19: 1 | B19: Análise fisico-química e bacteriológica da água do corpo receptor
B20: Coliformes termotolerantes, DBO, fósforo total, nitrogênio total, OD, pH, temperatura, turbidez e sólidos totais. | C20: und | D20: 1 | E20: 227.44 | F20: =D20*E20 -> 227.44
A24: Total Geral - Serviços Auxiliares: | F24: =SUM(F19:F23) -> 227.44
A27: NOME DO INFORMANTE: Pedro Antonio Molinas | D27: QUALIFICAÇÃO: Sócio Diretor
A29: ASSINATURA: | E29: DATA:
E30: 2019-12-09
A31: OBSERVAÇÃO:
A32: 1 - OS SERVIÇOS PAGOS A PREÇOS UNITÁRIOS INCLUEM OS CUSTOS DE MÃO DE OBRA, EQUIPAMENTOS, MATERIIAIS E VEÍCULOS UTILIZADOS NA SUA EXECUÇÃO; BEM COMO CUSTOS DE ADMINISTRAÇÃO E DESPESAS FISCAIS
A34: 2 - OS VALORES FORAM OBTIDOS ATRAVÉS DE ORÇAMENTOS

Sheet FPRO_VII Cronog Fisico
A7: CRONOGRAMA FÍSICO | D7: CÓDIGO:
D8: FPRO -VII
A10: NOME DA CONSULTORA: | D10: EDITAL:
A12: OBJETO:
A13: Elaboração do Projeto Básico de Engenharia do Sistema de Esgotamento Sanitário e Drenagem Urbana do Município de ARAME, no Estado do Maranhão
A17: Sequência | B17: Tarefa | C17: Relatório / Serviço de Campo | D17: Quant. de Dias
A19: 0 | B19: E01 | C19: Serviços Topográficos | D19: 120
A20: 1 | B20: E02 | C20: Diagnóstico e Estudo de Concepção | D20: 60
A21: 1 | B21: E03 | C21: Serviços Geotécnicos | D21: 90
A22: 1 | B22: E04 | C22: Minuta do Projeto Básico: | D22: 30
A23: 1 | B23: E05 | C23: Projeto Básico Final | D23: 60
A26: Prazo (dias): | D26: =SUM(D19:D25) -> 360
A29: NOME DO INFORMANTE: Pedro Antonio Molinas | D29: QUALIFICAÇÃO: Sócio - Diretor
A31: ASSINATURA: | D31: DATA: 09/12/2019
A33: OBSERVAÇÃO:
A34: 1 - AS LICITANTES APRESENTARÃO SEUS CRONOGRAMAS, CONSIDERANDO, NO MÍNIMO, A RELAÇÃO DE EVENTOS/PRODUTOS CONSTANTES DO ANEXO V
A36: 2 - OS DIAS CORRIDOS FORAM CONSIDERADOS A PARTIR DA EMISSÃO DA ORDEM DE SERVIÇO (os), CONFORME PREVISTO NOS TERMO DE REFERÊNCIA

Sheet FPRO_VIII_Det_Custos Adm_
A7: DETALHAMENTO DO CUSTO DE ADMINISTRAÇÃO | C7: CÓDIGO:
C8: FPRO - VIII
A10: NOME DA CONSULTORA: | C10: EDITAL:
A12: OBJETO:
A13: Elaboração do Projeto Básico de Engenharia do Sistema de Esgotamento Sanitário e Drenagem Urbana do Município de ARAME, no Estado do Maranhão
A17: Item | B17: Descrição | C17: %
A18: 1 | B18: Custos da equipe da administração central da empresa consultora (diretoria, pessoal técnico de apoio e pessoal administrativo não diretamente vinculado à prestação dos serviços) | C18: 0.1
A19: 2 | B19: Outras despesas que afetam o custo de produção como: avaliação do concreto com ensaios, treinamento, biblioteca, programa de qualidade, auditoria interna e externa | C19: 0.03
A20: 3 | B20: Despesas com aluguéis, comunicação, manutenção e transporte não diretamente relacionados com o custo direto dos serviços | C20: 0.02
A21: Total Geral - Custo de Administração: | C21: =SUM(C18:C20) -> 0.15
A23: NOME DO INFORMANTE: Pedro Antonio Molinas | C23: QUALIFICAÇÃO: Sócio Diretor
A25: ASSINATURA: | C25: DATA:
C26: 2019-12-09
A27: OBSERVAÇÃO:
A28: 1 - RELACIONAR OS CUSTOS DE ADMINISTRAÇÃO COM RESPECTIVOS PERCENTUAIS INCIDENTES NA MÃO -DE-OBRA DOS SERVIÇOS

Sheet FPRO_IX Det_ Desp Fiscais
A7: DETALHAMENTO DAS DESPESAS FISCAIS | C7: CÓDIGO:
C8: FPRO - IX
A10: NOME DA CONSULTORA: | C10: EDITAL:
A12: OBJETO:
A13: Elaboração do Projeto Básico de Engenharia do Sistema de Esgotamento Sanitário e Drenagem Urbana do Município de ARAME, no Estado do Maranhão
A17: Descrição | B17: DF (%)2 | C17: DF' (%)3
A18: 1 - ISS | B18: 5 | C18: =(1/(1-$B$21/100))*B18 -> 5.83090379
A19: 2 - PIS | B19: 1.65 | C19: =(1/(1-$B$21/100))*B19 -> 1.924198251
A20: 3 - COFINS | B20: 7.6 | C20: =(1/(1-$B$21/100))*B20 -> 8.862973761
A21: Total Geral - Despesas Fiscais: | B21: =ROUND(B18+B19+B20,2) -> 14.25 | C21: =ROUND(C18+C19+C20,2) -> 16.62
A23: NOME DO INFORMANTE: Pedro Antonio Molinas | C23: QUALIFICAÇÃO: Sócio Diretor
A25: ASSINATURA: | C25: DATA:
C26: 2019-12-09
A27: OBSERVAÇÃO:
A28: 1 - DISCRIMINAR OS TRIBUTOS QUE INCIDEM SOBRE OS CUSTOS DA PRESTAÇÃO DOS SERVIÇOS
A29: 2 - DF = INDICAR OS VALORES PERCENTUAIS DE CADA TRIBUTO E A SOMA DOS MESMOS (ex: ISS 5% + PIS 1,65% + COFINS 7,60% = 14,25%)
A31: 3 - AS DESPESAS FISCAIS (DF) INCIDEM SOBRE O TOTAL DA FATURA E NÃO SOBRE OS CUSTOS INCORRIDOS, DEVENDO SER CALCULADO O DF' APLICANDO-SE A SEGUINTE FÓRMULA:
A33: DF' = { [ 1 / ( 1 - DF) ] - 1 } x 100
A34: =CONCATENATE(" DF' = { [ 1 / ( 1 - ",B21," ) ] - 1 } x 100") -> DF' = { [ 1 / ( 1 - 14,25 ) ] - 1 } x 100
A35: =CONCATENATE(" DF' = ",ROUND(C21/100,4)," ou ",ROUND(C21,2),"%. APLICAR O % ENCONTRADO NA LINHA ""I"" DO FPRO PARA CALCULAR AS DESPESAS FISCAIS") -> DF' = 0,1662 ou 16,62%. APLICAR O % ENCONTRADO NA LINHA "I" DO FPRO PARA CALCULAR AS DESPESAS FISCAIS

Sheet FPRO_X Det_ Enc_ Soc_
A7: DETALHAMENTO DE ENCARGOS SOCIAIS | C7: CÓDIGO:
C8: FPRO - X
A10: NOME DA CONSULTORA: | C10: EDITAL:
A12: OBJETO:
A13: Elaboração do Projeto Básico de Engenharia do Sistema de Esgotamento Sanitário e Drenagem Urbana do Município de ARAME, no Estado do Maranhão
A17: ITEM | B17: DESCRIÇÃO | C17: VALORES
C18: HORISTA % | D18: MENSALISTA %
A19: A | B19: ENCARGOS SOCIAIS BÁSICOS
A20: A1 | B20: INSS | C20: 0.2 | D20: 0.2
A21: A2 | B21: Sesi | C21: 0.015 | D21: 0.015
A22: A3 | B22: Senai | C22: 0.01 | D22: 0.01
A23: A4 | B23: Incra | C23: 0.002 | D23: 0.002
A24: A5 | B24: Sebrae | C24: 0.006 | D24: 0.006
A25: A6 | B25: Salário Educação | C25: 0.025 | D25: 0.025
A26: A7 | B26: Seguro contra acidente de trabalho | C26: 0.03 | D26: 0.03
A27: A8 | B27: FGTS | C27: 0.08 | D27: 0.08
A28: A9 | B28: Seconci | C28: 0.01 | D28: 0.01
A29: SUBTOTAL DE "A": | C29: =SUM(C20:C28) -> 0.378 | D29: =SUM(D20:D28) -> 0.378
A31: B | B31: ENCARGOS SOCIAIS QUE RECEBEM INCIDÊNCIA DE "A"
A32: B1 | B32: Repouso semanal remunerado | C32: 0.1788 | D32: Não incide
A33: B2 | B33: Feriados | C33: 0.0395 | D33: Não incide
A34: B3 | B34: Auxílio-enfermidade | C34: 0.0092 | D34: 0.0071
A35: B4 | B35: 13º Salário | C35: 0.1081 | D35: 0.0833
A36: B5 | B36: Licença Paternidade | C36: 0.0007 | D36: 0.0006
A37: B6 | B37: Faltas justificadas | C37: 0.0072 | D37: 0.0056
A38: B7 | B38: Dias de chuvas | C38: 0.0148 | D38: Não incide
A39: B8 | B39: Auxílio acidente de trabalho | C39: 0.0011 | D39: 0.0009
A40: B9 | B40: Férias gozadas | C40: 0.0861 | D40: 0.0663
A41: B10 | B41: Salário Maternidade | C41: 0.0003 | D41: 0.0002
A42: SUBTOTAL DE "B": | C42: =ROUND(SUM(C32:C41),4) -> 0.4458 | D42: =ROUND(SUM(D32:D41),4) -> 0.164
A44: C | B44: ENCARGOS SOCIAIS QUE NÃO RECEBEM INCIDÊNCIA DE "A"
A45: C1 | B45: Aviso prévio indenizado – decreto 6.727/2009 | C45: 0.0542 | D45: 0.0418
A46: C2 | B46: Aviso prévio trabalhado – decreto 6.727/2010 | C46: 0.0013 | D46: 0.001
A47: C3 | B47: Férias indenizadas | C47: 0.0487 | D47: 0.0375
A48: C4 | B48: Depósito rescisão sem justa causa | C48: 0.0495 | D48: 0.0382
A49: C5 | B49: Indenização adicional | C49: 0.0046 | D49: 0.0035
A50: SUBTOTAL DE "C": | C50: =ROUND(SUM(C45:C49),4) -> 0.1583 | D50: =ROUND(SUM(D45:D49),4) -> 0.122
A52: D | B52: REINCIDÊNCIAS
A53: D1 | B53: Reincidência de Grupo "A" sobre Grupo "B" | C53: 0.1685 | D53: 0.062
A54: D2 | B54: Reincidência de Grupo "A" sobre aviso prévio trabalhado e reincidência do FGTS sobre aviso prévio indenizado | C54: 0.0048 | D54: 0.0037
A55: SUBTOTAL DE "D": | C55: =ROUND(SUM(C53:C54),4) -> 0.1733 | D55: =ROUND(SUM(D53:D54),4) -> 0.0657
A57: TOTAL - ENCARGOS SOCIAIS: | C57: =ROUND(C29+C42+C50+C55,4) -> 1.1554 | D57: =ROUND(D29+D42+D50+D55,4) -> 0.7297
A60: NOME DO INFORMANTE: Pedro Antonio Molinas | C60: QUALIFICAÇÃO: Sócio Diretor
A62: ASSINATURA: | C62: DATA: 09/12/2019
A64: OBSERVAÇÃO:
A65: 1 - DISCRIMINAR OS ENCARGOS SOCIAIS COM SEUS RESPECTIVOS PERCENTUAS, TOTALIZANDO OS MESMOS.
A66: 2 - VALORES PERCENTUAIS OBTIDOS em 05/09/2019, A PARTIR DO SINAPI - COMPOSIÇÃO DE ENCARGOS SOCIAIS, SEM DESONERAÇÃO (http://www.caixa.gov.br/Downloads/sinapi-encargos-sociais-sem-desoneracao/SINAPI_Encargos_Sociais_A_PARTIR_DE_OUTUBRO_2018.pdf)
A69: 3 - PARA EFETIVAÇÃO DO CÁLCULO DOS VALORES EM REAIS, FORAM UTILIZADOS OS VALORES DA COLUNA "MENSALISTA %"
